[Event "28th Hit Open-A 2024"]
[Site "Nova Gorica"]
[Date "2024.01.29"]
[Round "5.7"]
[White "Bodrogi, Bendeguz"]
[Black "Sebenik, Matej"]
[Result "1/2-1/2"]
[ECO "A49"]
[WhiteElo "2261"]
[BlackElo "2536"]
[Annotator "RC"]
[PlyCount "197"]
[EventDate "2024.01.22"]
[EventType "swiss"]
[EventCountry "SLO"]
[SourceTitle "playchess.com"]
[Source "ChessBase"]
[SourceQuality "1"]
[TimeControl "5400+30"]

1. Nf3 {[%emt 0:00:58]} Nf6 {[%emt 0:00:13]} 2. g3 {[%emt 0:00:44]} g6 {[%emt 0:00:23]} 3. b3 {[%emt 0:01:09]} Bg7 {[%emt 0:00:48]} 4. Bb2 {[%emt 0:00:09]} d6 {[%emt 0:00:10]} 5. d4 {[%emt 0:00:08]} b5 {[%emt 0:00:08]} 6. Bg2 {[%emt 0:08:02]} Bb7 {[%emt 0:00:11]} 7. O-O {[%emt 0:00:20]} Nbd7 {[%emt 0:00:20]} 8. Nbd2 {[%emt 0:10:31]} O-O {[%emt 0:00:32]} 9. c4 {[%emt 0:00:15]} bxc4 {[%emt 0:00:20]} 10. Nxc4 {[%emt 0:04:51]} a5 {[%emt 0:00:43]} 11. Nh4 {[%emt 0:15:28]} Qb8 {[%emt 0:08:32]} 12. d5 {[%emt 0:06:32]} a4 {[%emt 0:11:58]} 13. e4 {[%emt 0:12:07]} axb3 {[%emt 0:00:29]} 14. axb3 {[%emt 0:00:42]} Nc5 {[%emt 0:14:24]} 15. Rb1 {[%emt 0:12:52]} Ncxe4 {[%emt 0:13:06]} 16. Re1 {[%emt 0:00:12]} Nc5 {[%emt 0:00:02]} 17. Rxe7 {[%emt 0:01:08]} Re8 {[%emt 0:00:08]} 18. Rxe8+ {[%emt 0:05:01]} Qxe8 {[%emt 0:00:06]} 19. b4 {[%emt 0:00:46]} Ncd7 {[%emt 0:25:38]} 20. Na5 {[%emt 0:08:37]} Ba6 {[%emt 0:00:04]} 21. Nc6 {[%emt 0:00:57]} Bb5 {[%emt 0:01:24]} 22. Qd2 {[%emt 0:01:44]} Qf8 {[%emt 0:10:03]} 23. Re1 {[%emt 0:01:37]} Re8 {[%emt 0:00:06]} 24. Re3 {[%emt 0:01:38]} Nb6 {[%emt 0:00:30]} 25. Bd4 {[%emt 0:02:18]} Rxe3 {[%emt 0:06:46]} 26. Bxe3 {[%emt 0:01:53]} Qa8 {[%emt 0:01:29]} 27. Bd4 {[%emt 0:01:50]} Qa4 {[%emt 0:02:25]} 28. Ne7+ {[%emt 0:01:07]} Kf8 {[%emt 0:00:15]} 29. Nef5 {[%emt 0:00:20]} gxf5 {[%emt 0:03:05]} 30. Nxf5 {[%emt 0:00:02]} Ne8 {[%emt 0:00:32]} 31. Nxg7 {[%emt 0:00:28]} Nxg7 {[%emt 0:00:04]} 32. h4 {[%emt 0:01:09]} Qb3 {[%emt 0:00:45]} 33. Be4 {[%emt 0:00:15]} h6 {[%emt 0:00:43]} 34. Kh2 {[%emt 0:00:16]} Qc4 {[%emt 0:00:19]} 35. Bf3 {[%emt 0:01:04]} Nd7 {[%emt 0:00:34]} 36. Bb2 {[%emt 0:00:16]} Ne5 {[%emt 0:00:32]} 37. Bxe5 {[%emt 0:00:04]} dxe5 {[%emt 0:00:03]} 38. Qxh6 {[%emt 0:00:08]} Kg8 {[%emt 0:01:03]} 39. Qf6 {[%emt 0:01:31]} Qxb4 {[%emt 0:00:27]} 40. Qxe5 {[%emt 0:00:12]} Qd6 {[%emt 0:00:02]} 41. Qg5 {[%emt 0:00:14]} f6 {[%emt 0:00:06]} 42. Qd2 {[%emt 0:00:41]} Be8 {[%emt 0:00:16]} 43. Bg2 {[%emt 0:00:22]} Bf7 {[%emt 0:00:05]} 44. Qa5 {[%emt 0:00:54]} Nf5 {[%emt 0:00:21]} 45. Qa4 {[%emt 0:00:44]} Ne7 {[%emt 0:01:38]} 46. Qg4+ {[%emt 0:00:06]} Kf8 {[%emt 0:00:03]} 47. h5 {[%emt 0:00:20]} Qe5 {[%emt 0:00:36]} 48. h6 {[%emt 0:01:08]} Qh5+ {[%emt 0:00:19]} 49. Qxh5 {[%emt 0:00:06]} Bxh5 {[%emt 0:00:02]} 50. Kh3 {[%emt 0:00:37]} Bf7 {[%emt 0:00:21]} 51. d6 {[%emt 0:00:04]} cxd6 {[%emt 0:00:04]} 52. g4 {[%emt 0:00:10]} Bg6 {[%emt 0:02:06]} 53. f4 {[%emt 0:00:20]} Ng8 {[%emt 0:00:46]} 54. g5 {[%emt 0:00:45]} fxg5 {[%emt 0:00:03]} 55. fxg5 {[%emt 0:00:07]} Ne7 {[%emt 0:00:05]} 56. Kg4 {[%emt 0:00:11]} Kf7 {[%emt 0:00:48]} 57. Kf4 {[%emt 0:00:08]} Ke6 {[%emt 0:00:12]} 58. Bh3+ {[%emt 0:00:56]} Kd5 {[%emt 0:00:11]} 59. Bd7 {[%emt 0:00:29]} Kd4 {[%emt 0:00:05]} 60. Be6 {[%emt 0:00:15]} Kc5 {[%emt 0:01:15]} 61. Bd7 {[%emt 0:01:19]} Kd5 {[%emt 0:01:13]} 62. Bg4 {[%emt 0:00:57]} Bh7 {[%emt 0:00:28]} 63. Bh5 {[%emt 0:00:24]} Ke6 {[%emt 0:00:44]} 64. Bg4+ {[%emt 0:00:11]} Kf7 {[%emt 0:00:22]} 65. Bf3 {[%emt 0:00:34]} Ng6+ {[%emt 0:00:07]} 66. Ke3 {[%emt 0:00:18]} Ne5 {[%emt 0:00:27]} 67. Bd5+ {[%emt 0:00:03]} Ke7 {[%emt 0:00:44]} 68. Kf4 {[%emt 0:00:40]} Nd3+ {[%emt 0:00:07]} 69. Ke3 {[%emt 0:00:11]} Ne5 {[%emt 0:01:12]} 70. Kf4 {[%emt 0:00:04]} Nd7 {[%emt 0:00:22]} 71. Kf3 {[%emt 0:00:48]} Nf8 {[%emt 0:00:02]} 72. Kg4 {[%emt 0:01:33]} Ne6 {[%emt 0:00:12]} 73. Bb3 {[%emt 0:00:28]} Bg6 {[%emt 0:01:08]} 74. Bd5 {[%emt 0:00:15]} Nc7 {[%emt 0:00:07]} 75. Bg8 {[%emt 0:00:27]} Kf8 {[%emt 0:00:17]} 76. Bb3 {[%emt 0:00:07]} Nb5 {[%emt 0:01:36]} 77. Bd5 {[%emt 0:01:38]} Nd4 {[%emt 0:00:19]} 78. Kf4 {[%emt 0:00:08]} Ke7 {[%emt 0:00:07]} 79. Bg8 {[%emt 0:00:49]} Ne6+ {[%emt 0:00:07]} 80. Kg4 {[%emt 0:00:03]} Nf8 {[%emt 0:00:33]} 81. Kf4 {[%emt 0:00:11]} Bf7 {[%emt 0:00:52]} 82. h7 {[%emt 0:00:12]} Ng6+ {[%emt 0:00:11]} 83. Kf5 {[%emt 0:00:11]} Nh8 {[%emt 0:00:12]} 84. Ke4 {[%emt 0:00:35]} Kf8 {[%emt 0:00:10]} 85. Kd4 {[%emt 0:00:44]} Kg7 {[%emt 0:01:16]} 86. Ke4 {[%emt 0:00:32]} Ng6 {[%emt 0:00:23]} 87. Kd4 {[%emt 0:00:06]} Kf8 {[%emt 0:01:11]} 88. Ke4 {[%emt 0:00:20]} Ke7 {[%emt 0:00:36]} 89. Kf5 {[%emt 0:01:00]} Nh8 {[%emt 0:00:31]} 90. Ke4 {[%emt 0:00:06]} Ke8 {[%emt 0:00:21]} 91. Kf5 {[%emt 0:00:19]} Ke7 {[%emt 0:00:33]} 92. Ke4 {[%emt 0:00:10]} Kf8 {[%emt 0:00:38]} 93. Kf5 {[%emt 0:00:56]} Kg7 {[%emt 0:00:25]} 94. Ke4 {[%emt 0:00:04]} Ng6 {[%emt 0:00:26]} 95. Kd4 {[%emt 0:00:11]} Kf8 {[%emt 0:00:28]} 96. Ke4 {[%emt 0:00:11]} Ke7 {[%emt 0:00:23]} 97. Kf5 {[%emt 0:00:45]} Kf8 {[%emt 0:00:49]} 98. Kf6 {[%emt 0:00:18]} Be8 {[%emt 0:00:29]} 99. Ke6 {[%emt 0:00:08]} 1/2-1/2

[Event "28th Hit Open-A 2024"]
[Site "Nova Gorica"]
[Date "2024.01.29"]
[Round "5.8"]
[White "Djuric, Stefan"]
[Black "Doric, Darko"]
[Result "0-1"]
[ECO "D37"]
[WhiteElo "2220"]
[BlackElo "2456"]
[Annotator "RC"]
[PlyCount "132"]
[EventDate "2024.01.22"]
[EventType "swiss"]
[EventCountry "SLO"]
[SourceTitle "playchess.com"]
[Source "ChessBase"]
[SourceQuality "1"]
[TimeControl "5400+30"]

1. c4 {[%emt 0:10:01]} e6 {[%emt 0:00:06]} 2. Nf3 {[%emt 0:00:20]} d5 {[%emt 0:00:07]} 3. e3 {[%emt 0:00:01]} Nf6 {[%emt 0:02:36]} 4. Nc3 {[%emt 0:00:04]} Be7 {[%emt 0:03:19]} 5. d4 {[%emt 0:00:24]} O-O {[%emt 0:00:15]} 6. Bd3 {[%emt 0:00:13]} b6 {[%emt 0:04:35]} 7. e4 {[%emt 0:00:54]} dxe4 {[%emt 0:00:53]} 8. Nxe4 {[%emt 0:00:02]} Nbd7 {[%emt 0:02:12]} 9. Qc2 {[%emt 0:21:42]} Bb7 {[%emt 0:00:55]} 10. Neg5 {[%emt 0:01:48]} h6 {[%emt 0:09:07]} 11. h4 {[%emt 0:00:02]} c5 {[%emt 0:01:06]} 12. Ne5 {[%emt 0:01:22]} Qe8 {[%emt 0:03:20]} 13. Bh7+ {[%emt 0:18:36]} Kh8 {[%emt 0:00:02]} 14. Nexf7+ {[%emt 0:00:15]} Rxf7 {[%emt 0:00:39]} 15. Bg6 {[%emt 0:00:03]} hxg5 {[%emt 0:02:26]} 16. hxg5+ {[%emt 0:00:03]} Kg8 {[%emt 0:00:26]} 17. gxf6 {[%emt 0:03:39]} Nxf6 {[%emt 0:00:48]} 18. Bf4 {[%emt 0:12:50]} cxd4 {[%emt 0:05:48]} 19. O-O-O {[%emt 0:00:22]} Bxg2 {[%emt 0:06:50]} 20. f3 {[%emt 0:00:53]} Bxh1 {[%emt 0:00:35]} 21. Rxh1 {[%emt 0:00:01]} Qc6 {[%emt 0:15:12]} 22. Bh7+ {[%emt 0:00:26]} Kf8 {[%emt 0:02:18]} 23. Be4 {[%emt 0:00:03]} Bd6 {[%emt 0:01:01]} 24. Bxc6 {[%emt 0:01:21]} Bxf4+ {[%emt 0:00:02]} 25. Kb1 {[%emt 0:00:01]} Rd8 {[%emt 0:02:07]} 26. Qd3 {[%emt 0:01:49]} Bh6 {[%emt 0:04:46]} 27. Re1 {[%emt 0:03:47]} Re7 {[%emt 0:03:47]} 28. Ba4 {[%emt 0:00:51]} Rd6 {[%emt 0:05:29]} 29. Bc2 {[%emt 0:02:39]} Rc7 {[%emt 0:01:24]} 30. Qa3 {[%emt 0:00:48]} Ke7 {[%emt 0:00:10]} 31. Bd3 {[%emt 0:00:27]} a5 {[%emt 0:00:21]} 32. Re5 {[%emt 0:00:59]} Nd7 {[%emt 0:00:43]} 33. Re2 {[%emt 0:01:27]} Nc5 {[%emt 0:00:06]} 34. Kc2 {[%emt 0:00:13]} Rc8 {[%emt 0:01:12]} 35. Re5 {[%emt 0:03:33]} Bf4 {[%emt 0:00:49]} 36. Rh5 {[%emt 0:01:38]} Kf6 {[%emt 0:04:31]} 37. Kd1 {[%emt 0:00:47]} Rdd8 {[%emt 0:01:00]} 38. Rh4 {[%emt 0:00:46]} Be3 {[%emt 0:00:25]} 39. Ke2 {[%emt 0:01:01]} Rh8 {[%emt 0:00:34]} 40. Bh7 {[%emt 0:02:08]} g6 {[%emt 0:03:16]} 41. b4 {[%emt 0:00:28]} axb4 {[%emt 0:00:52]} 42. Qxb4 {[%emt 0:00:04]} Bg5 {[%emt 0:04:27]} 43. Rh1 {[%emt 0:00:34]} Rc6 {[%emt 0:00:59]} 44. Qb1 {[%emt 0:01:25]} d3+ {[%emt 0:00:10]} 45. Kf2 {[%emt 0:00:10]} e5 {[%emt 0:00:11]} 46. Qg1 {[%emt 0:00:34]} Ne6 {[%emt 0:01:00]} 47. Qb1 {[%emt 0:00:23]} Rd6 {[%emt 0:00:23]} 48. a4 {[%emt 0:00:21]} Rc8 {[%emt 0:05:26]} 49. Rd1 {[%emt 0:01:35]} Rh8 {[%emt 0:01:56]} 50. Bxg6 {[%emt 0:00:27]} Kxg6 {[%emt 0:00:15]} 51. Rxd3 {[%emt 0:00:02]} Rxd3 {[%emt 0:00:10]} 52. Qxd3+ {[%emt 0:00:06]} Kf6 {[%emt 0:00:04]} 53. Qb3 {[%emt 0:00:15]} Rh2+ {[%emt 0:00:34]} 54. Kf1 {[%emt 0:00:39]} Rh1+ {[%emt 0:00:51]} 55. Kg2 {[%emt 0:00:10]} Rc1 {[%emt 0:00:07]} 56. Kf2 {[%emt 0:00:23]} Bf4 {[%emt 0:00:27]} 57. Qxb6 {[%emt 0:00:12]} Rc2+ {[%emt 0:00:36]} 58. Kf1 {[%emt 0:00:26]} Rxc4 {[%emt 0:00:02]} 59. a5 {[%emt 0:00:04]} Rc3 {[%emt 0:00:08]} 60. Ke2 {[%emt 0:00:42]} Kf5 {[%emt 0:01:38]} 61. Qb1+ {[%emt 0:00:59]} Kg5 {[%emt 0:00:06]} 62. a6 {[%emt 0:00:25]} Nd4+ {[%emt 0:00:56]} 63. Ke1 {[%emt 0:01:48]} Re3+ {[%emt 0:00:30]} 64. Kf2 {[%emt 0:00:22]} Rxf3+ {[%emt 0:00:04]} 65. Kg2 {[%emt 0:00:01]} Rg3+ {[%emt 0:00:33]} 66. Kf1 {[%emt 0:00:53]} Be3 {[%emt 0:00:24]} 0-1

[Event "28th Hit Open-A 2024"]
[Site "Nova Gorica"]
[Date "2024.01.29"]
[Round "5.9"]
[White "Skrbec, Leon"]
[Black "Cvitan, Ognjen"]
[Result "1/2-1/2"]
[ECO "D37"]
[WhiteElo "2218"]
[BlackElo "2422"]
[Annotator "RC"]
[PlyCount "22"]
[EventDate "2024.01.22"]
[EventType "swiss"]
[EventCountry "SLO"]
[SourceTitle "playchess.com"]
[Source "ChessBase"]
[SourceQuality "1"]
[TimeControl "5400+30"]

1. d4 {[%emt 0:00:03]} Nf6 {[%emt 0:02:47]} 2. Nf3 {[%emt 0:00:14]} d5 {[%emt 0:06:06]} 3. c4 {[%emt 0:00:06]} e6 {[%emt 0:00:35]} 4. Nc3 {[%emt 0:00:15]} Be7 {[%emt 0:00:59]} 5. Bf4 {[%emt 0:01:30]} O-O {[%emt 0:00:41]} 6. e3 {[%emt 0:00:15]} c5 {[%emt 0:00:30]} 7. dxc5 {[%emt 0:00:45]} Bxc5 {[%emt 0:00:06]} 8. a3 {[%emt 0:00:36]} Nc6 {[%emt 0:00:28]} 9. b4 {[%emt 0:04:21]} Bd6 {[%emt 0:08:34]} 10. Bxd6 {[%emt 0:00:45]} Qxd6 {[%emt 0:00:08]} 11. Be2 {[%emt 0:03:32]} Rd8 {[%emt 0:00:45]} 1/2-1/2

[Event "28th Hit Open-A 2024"]
[Site "Nova Gorica"]
[Date "2024.01.29"]
[Round "5.10"]
[White "Zupancic, Jernej"]
[Black "Karacsonyi, Gellert"]
[Result "0-1"]
[ECO "E14"]
[WhiteElo "2211"]
[BlackElo "2398"]
[Annotator "RC"]
[PlyCount "204"]
[EventDate "2024.01.22"]
[EventType "swiss"]
[EventCountry "SLO"]
[SourceTitle "playchess.com"]
[Source "ChessBase"]
[SourceQuality "1"]
[TimeControl "5400+30"]

1. d4 {[%emt 0:00:02]} d5 {[%emt 0:00:40]} 2. c4 {[%emt 0:00:10]} e6 {[%emt 0:00:07]} 3. Nf3 {[%emt 0:00:08]} Nf6 {[%emt 0:00:09]} 4. e3 {[%emt 0:00:11]} b6 {[%emt 0:00:43]} 5. Nbd2 {[%emt 0:01:39]} Bd6 {[%emt 0:00:47]} 6. b3 {[%emt 0:01:02]} O-O {[%emt 0:00:11]} 7. Bd3 {[%emt 0:00:23]} Bb7 {[%emt 0:01:03]} 8. O-O {[%emt 0:00:46]} Nbd7 {[%emt 0:02:38]} 9. Bb2 {[%emt 0:01:27]} Ne4 {[%emt 0:03:02]} 10. Qe2 {[%emt 0:07:49]} a6 {[%emt 0:07:24]} 11. Rfd1 {[%emt 0:03:08]} f5 {[%emt 0:05:08]} 12. cxd5 {[%emt 0:24:16]} exd5 {[%emt 0:00:33]} 13. Ne5 {[%emt 0:00:45]} Ndf6 {[%emt 0:06:55]} 14. Nf1 {[%emt 0:05:07]} g6 {[%emt 0:05:49]} 15. f3 {[%emt 0:04:44]} Ng5 {[%emt 0:00:08]} 16. Rac1 {[%emt 0:00:36]} Qe7 {[%emt 0:02:08]} 17. Nc6 {[%emt 0:05:20]} Qg7 {[%emt 0:02:55]} 18. Re1 {[%emt 0:03:04]} Qh6 {[%emt 0:05:39]} 19. a3 {[%emt 0:02:12]} Rfe8 {[%emt 0:02:48]} 20. Qc2 {[%emt 0:03:47]} Re6 {[%emt 0:05:46]} 21. Ne5 {[%emt 0:03:42]} Nf7 {[%emt 0:06:50]} 22. b4 {[%emt 0:03:13]} Rc8 {[%emt 0:01:41]} 23. Qe2 {[%emt 0:05:49]} Ra8 {[%emt 0:03:02]} 24. Qc2 {[%emt 0:00:30]} Ne8 {[%emt 0:02:10]} 25. e4 {[%emt 0:04:17]} fxe4 {[%emt 0:07:27]} 26. fxe4 {[%emt 0:00:07]} Nxe5 {[%emt 0:03:16]} 27. dxe5 {[%emt 0:00:21]} Bxe5 {[%emt 0:02:32]} 28. exd5 {[%emt 0:02:56]} Bxb2 {[%emt 0:00:11]} 29. dxe6 {[%emt 0:00:31]} Bxc1 {[%emt 0:00:06]} 30. Rxc1 {[%emt 0:00:07]} Qg5 {[%emt 0:02:01]} 31. Be4 {[%emt 0:02:17]} Bxe4 {[%emt 0:00:35]} 32. Qxe4 {[%emt 0:00:06]} Rd8 {[%emt 0:00:30]} 33. e7 {[%emt 0:01:43]} Rd6 {[%emt 0:01:24]} 34. Re1 {[%emt 0:00:29]} Qd5 {[%emt 0:01:15]} 35. Qe2 {[%emt 0:00:48]} Qd3 {[%emt 0:03:34]} 36. Qa2+ {[%emt 0:00:37]} Qd5 {[%emt 0:00:21]} 37. Qe2 {[%emt 0:00:38]} Qd3 {[%emt 0:00:27]} 38. Qa2+ {[%emt 0:00:14]} Kg7 {[%emt 0:01:11]} 39. Ng3 {[%emt 0:03:06]} Qd2 {[%emt 0:02:22]} 40. Qb1 {[%emt 0:00:14]} Qd3 {[%emt 0:01:12]} 41. Qa2 {[%emt 0:01:39]} Qd4+ {[%emt 0:01:42]} 42. Kh1 {[%emt 0:00:17]} Rf6 {[%emt 0:00:31]} 43. Qe2 {[%emt 0:01:11]} Qf2 {[%emt 0:04:29]} 44. Qe5 {[%emt 0:01:09]} Qf4 {[%emt 0:00:35]} 45. Qe2 {[%emt 0:00:40]} Qf2 {[%emt 0:00:26]} 46. Qe5 {[%emt 0:00:11]} Qf4 {[%emt 0:03:27]} 47. Qe2 {[%emt 0:00:08]} b5 {[%emt 0:00:29]} 48. Qb2 {[%emt 0:02:12]} Kf7 {[%emt 0:00:22]} 49. Qe2 {[%emt 0:00:56]} Qc4 {[%emt 0:01:07]} 50. Qd2 {[%emt 0:03:58]} Re6 {[%emt 0:02:11]} 51. Rc1 {[%emt 0:00:01]} Qh4 {[%emt 0:00:35]} 52. Qf2+ {[%emt 0:00:26]} Qf6 {[%emt 0:00:26]} 53. Qa7 {[%emt 0:01:22]} Qxe7 {[%emt 0:00:23]} 54. Rf1+ {[%emt 0:00:19]} Nf6 {[%emt 0:00:36]} 55. Qf2 {[%emt 0:00:17]} Kg7 {[%emt 0:00:11]} 56. h3 {[%emt 0:00:29]} Qd6 {[%emt 0:00:39]} 57. Rc1 {[%emt 0:00:53]} h5 {[%emt 0:00:25]} 58. Ne2 {[%emt 0:01:40]} Ne4 {[%emt 0:01:26]} 59. Qd4+ {[%emt 0:00:11]} Kh7 {[%emt 0:00:15]} 60. Qxd6 {[%emt 0:00:26]} cxd6 {[%emt 0:00:02]} 61. Kg1 {[%emt 0:01:02]} d5 {[%emt 0:00:55]} 62. Nd4 {[%emt 0:00:45]} Rf6 {[%emt 0:00:19]} 63. Rc7+ {[%emt 0:01:34]} Kh6 {[%emt 0:00:02]} 64. h4 {[%emt 0:00:25]} g5 {[%emt 0:01:48]} 65. hxg5+ {[%emt 0:00:34]} Kxg5 {[%emt 0:00:01]} 66. Rd7 {[%emt 0:00:17]} Rd6 {[%emt 0:00:02]} 67. Rf7 {[%emt 0:00:19]} Kg6 {[%emt 0:00:26]} 68. Rf5 {[%emt 0:00:27]} Ng5 {[%emt 0:00:39]} 69. Re5 {[%emt 0:00:17]} Nf7 {[%emt 0:00:27]} 70. Rf5 {[%emt 0:01:00]} Nh6 {[%emt 0:00:01]} 71. Re5 {[%emt 0:00:22]} Ng4 {[%emt 0:00:29]} 72. Re8 {[%emt 0:00:10]} Nf6 {[%emt 0:00:37]} 73. Re5 {[%emt 0:00:18]} Ne4 {[%emt 0:00:43]} 74. Nf3 {[%emt 0:00:53]} Nf6 {[%emt 0:02:04]} 75. Nd4 {[%emt 0:01:37]} Ng4 {[%emt 0:00:07]} 76. Re8 {[%emt 0:00:03]} Rf6 {[%emt 0:00:57]} 77. Nf3 {[%emt 0:00:31]} Rc6 {[%emt 0:01:00]} 78. Kf1 {[%emt 0:01:27]} Rc1+ {[%emt 0:00:18]} 79. Ke2 {[%emt 0:00:05]} Rc2+ {[%emt 0:00:12]} 80. Kd3 {[%emt 0:00:22]} Rxg2 {[%emt 0:01:30]} 81. Re6+ {[%emt 0:00:50]} Kf5 {[%emt 0:00:27]} 82. Rxa6 {[%emt 0:00:21]} Rg3 {[%emt 0:00:43]} 83. Ke2 {[%emt 0:00:15]} Rg2+ {[%emt 0:00:19]} 84. Kd3 {[%emt 0:00:03]} Ne5+ {[%emt 0:00:42]} 85. Nxe5 {[%emt 0:00:09]} Kxe5 {[%emt 0:00:01]} 86. a4 {[%emt 0:01:20]} bxa4 {[%emt 0:00:33]} 87. Rxa4 {[%emt 0:00:03]} Rg4 {[%emt 0:00:16]} 88. Kc3 {[%emt 0:01:19]} Rg3+ {[%emt 0:00:01]} 89. Kc2 {[%emt 0:00:23]} Kd4 {[%emt 0:00:33]} 90. Ra8 {[%emt 0:00:56]} Kc4 {[%emt 0:00:05]} 91. Rh8 {[%emt 0:00:23]} Rg2+ {[%emt 0:00:24]} 92. Kd1 {[%emt 0:00:29]} Rg5 {[%emt 0:01:14]} 93. Rb8 {[%emt 0:00:34]} d4 {[%emt 0:00:01]} 94. Ke1 {[%emt 0:00:23]} Rb5 {[%emt 0:00:20]} 95. Rc8+ {[%emt 0:00:14]} Kxb4 {[%emt 0:00:14]} 96. Kd2 {[%emt 0:00:06]} Rc5 {[%emt 0:00:04]} 97. Ra8 {[%emt 0:00:10]} Kc4 {[%emt 0:00:23]} 98. Rd8 {[%emt 0:00:31]} Rg5 {[%emt 0:00:27]} 99. Rc8+ {[%emt 0:00:17]} Kd5 {[%emt 0:00:01]} 100. Rh8 {[%emt 0:00:31]} Ke4 {[%emt 0:00:18]} 101. Re8+ {[%emt 0:00:11]} Kf3 {[%emt 0:00:59]} 102. Kd3 {[%emt 0:00:37]} Rg4 {[%emt 0:00:23]} 0-1

[Event "28th Hit Open-A 2024"]
[Site "Nova Gorica"]
[Date "2024.01.29"]
[Round "5.11"]
[White "Kulkarni Bhakti"]
[Black "Marchesich, Giovanni"]
[Result "1-0"]
[ECO "A38"]
[WhiteElo "2364"]
[BlackElo "2210"]
[Annotator "TA"]
[PlyCount "75"]
[EventDate "2024.01.22"]
[EventType "swiss"]
[EventCountry "SLO"]
[SourceTitle "playchess.com"]
[Source "ChessBase"]
[SourceQuality "1"]
[TimeControl "5400+30"]

{[%evp 17,75,7,8,0,23,8,22,19,46,29,15,23,17,13,84,76,162,164,183,179,164,124,127,136,154,136,139,150,121,157,150,108,247,268,224,181,197,175,186,172,182,141,149,145,158,131,145,126,139,143,144,145,149,16,158,148,181,182,161,0]} 1. Nf3 {[%emt 0:02:30]} Nf6 {[%emt 0:00:10]} 2. g3 {[%emt 0:00:53]} g6 {[%emt 0:00:10]} 3. b3 {[%emt 0:00:48]} Bg7 {[%emt 0:01:03]} 4. Bb2 {[%emt 0:00:04]} c5 {[%emt 0:03:29]} 5. c4 {[%emt 0:01:02]} d6 {[%emt 0:00:14]} 6. Bg2 {[%emt 0:02:51]} e5 {[%emt 0:01:33]} 7. d3 {[%emt 0:00:45]} O-O {[%emt 0:01:10]} 8. O-O {[%emt 0:00:24]} Nc6 {[%emt 0:00:35]} 9. Nc3 {[%emt 0:01:04]} Rb8 {[%emt 0:02:20]} 10. a3 {[%emt 0:02:44]} Ne8 {[%emt 0:08:01]} 11. Nd2 {[%emt 0:01:22][%cal Bf3d2,Bd2e4,Be4d6][%mdl 32]} Nc7 {[%emt 0:04:00] [#]} 12. b4 $1 {[%emt 0:04:00] The position is equal.} cxb4 {[%emt 0:06:30]} (12... f5 13. b5) 13. axb4 {[%emt 0:00:06]} Nxb4 {[%emt 0:00:11]} 14. Qb3 {[%emt 0:12:05]} Nba6 {[%emt 0:03:13][%cal Ob7b5]} 15. Ba3 $36 {[%emt 0:00:47][%mdl 2048] Threatening Nde4. White is more active.} b6 {[%emt 0:15:04]} (15... Be6 $11 {remains equal.}) 16. Nde4 $16 {[%emt 0:04:29]} Bb7 {[%emt 0:00:22]} (16... Ne8 $16) 17. Bxd6 $18 {[%emt 0:02:13]} Re8 {[%emt 0:00:13]} 18. Bxc7 {[%emt 0:06:01]} Qxc7 {[%emt 0:01:13]} 19. Nb5 {[%emt 0:00:29] Excellent horsemanship.} Qe7 {[%emt 0:03:09]} 20. Ned6 {[%emt 0:07:55]} Nc5 {[%emt 0:02:00] [#]} 21. Qc2 {[%emt 0:09:45]} Bxg2 {[%emt 0:03:33]} 22. Kxg2 {[%emt 0:00:20][%cal Oa1a7]} Red8 {[%emt 0:00:27]} 23. Rxa7 {[%emt 0:00:33]} Rd7 {[%emt 0:00:07]} 24. Rfa1 {[%emt 0:01:38][%cal Bf1a1,Ba1a7,Ba7a8][%mdl 32]} e4 {[%emt 0:03:59]} 25. Rxd7 {[%emt 0:01:52]} Qxd7 {[%emt 0:01:30]} 26. Ra7 {[%emt 0:13:42]} exd3 {[%emt 0:00:22]} 27. exd3 {[%emt 0:00:04]} Qc6+ {[%emt 0:00:07] [#]} 28. f3 $1 {[%emt 0:00:19]} Nb7 {[%emt 0:00:50]} 29. Nxb7 {[%emt 0:01:16]} Rxb7 {[%emt 0:00:02]} 30. Ra8+ {[%emt 0:03:36]} Bf8 {[%emt 0:00:07] Black is weak on the light squares} 31. Qe2 {[%emt 0:00:29]} Re7 {[%emt 0:00:57] Repels Qe4} 32. Qxe7 {[%emt 0:00:24][%csl Ga8][%cal Re7f8]} Qxa8 $16 {[%emt 0:00:02][%mdl 4096] Endgame. KQB-KQN} 33. Qe2 {[%emt 0:00:35] Against Qa2} Qa1 {[%emt 0:00:27]} 34. d4 {[%emt 0:01:05] Prevents Bc5} Bg7 {[%emt 0:00:05]} 35. Qe8+ {[%emt 0:00:41]} Bf8 {[%emt 0:00:02]} 36. Nd6 {[%emt 0:00:27] Active counter play! White is clearly better.} Qa2+ {[%emt 0:00:29]} 37. Kh3 {[%emt 0:00:14]} Qa7 {[%emt 0:00:09]} 38. Qd8 $2 {[%emt 0:01:42][%mdl 32768] Weighted Error Value: White=0.15 (very precise) /Black=0.24 (precise) .  Missed win:     	White=1     	---        Mistake:       	---       	Black=3      Inaccurate:     	---       	Black=2      OK:         	White=10    	Black=9      Best:        	White=4     	Black=4     . Loss on time!?} (38. c5 $18 bxc5 39. dxc5) 1-0